bitfinex-derivatives/quotes_ETHF0:USTF0_20250702
["timestamp","ask_amount","ask_price","bid_price","bid_amount"]
[1751417664149,0.83372,2398.6,2398.3,2.9027]
[1751417664351,0.83368,2398.7,2398.4,2.44340047]
[1751417664547,0.83356,2399.0,2398.6,2.44340047]
[1751417664751,0.83356,2399.0,2398.8,2.44340047]
[1751417665254,0.6781,2399.3,2398.8,2.44340047]
[1751417665454,0.83354,2399.1,2398.8,3.27702047]
[1751417665648,0.83354,2399.1,2398.9,1.431]
[1751417666050,0.83356,2399.0,2398.8,2.44340047]
[1751417666957,0.83359,2398.9,2398.7,1.4234]
[1751417667255,4.52727047,2399.1,2398.5,0.83372]
[1751417667553,0.6781,2399.3,2398.8,2.44340047]
[1751417667758,0.6781,2399.3,2398.9,1.52218]
[1751417668057,0.83353,2399.1,2398.9,3.68788]
[1751417668452,59.983,2400.1,2398.9,3.68788]
[1751417668453,0.83351,2399.2,2399.0,3.27696047]
[1751417668653,2.44340047,2399.6,2399.0,3.27696047]
[1751417668654,4.52630047,2399.6,2399.0,3.27696047]
[1751417668852,1.4027,2399.5,2399.0,1.4355]
[1751417669059,0.83355,2399.1,2398.9,4.69577047]
[1751417669454,0.83355,2399.1,2398.9,3.86220047]
[1751417669855,0.83356,2399.0,2398.9,3.86220047]
[1751417670052,0.83356,2399.0,2398.9,1.4188]
[1751417670259,0.83356,2399.0,2398.9,0.6886]
[1751417671959,2.44340047,2399.0,2398.5,2.44340047]
[1751417672261,2.44340047,2399.0,2398.5,9.43492069]
[1751417672262,0.83367,2398.7,2398.5,9.43492069]
[1751417672660,0.83367,2398.7,2398.5,10.84242069]
[1751417672967,0.8337,2398.6,2398.5,5.39510047]
[1751417673356,0.8337,2398.6,2398.5,4.56140047]
[1751417673558,0.8337,2398.6,2398.5,2.118]
[1751417673757,0.8337,2398.6,2398.5,0.7105]
[1751417674856,0.7118,2398.9,2398.5,0.7105]
[1751417675162,0.7272,2399.1,2398.5,2.118]
[1751417675468,0.83365,2398.8,2398.6,1.53138]
[1751417675761,0.83365,2398.8,2398.6,2.99168]
[1751417676064,0.83362,2398.9,2398.6,2.99168]
[1751417676256,0.83362,2398.9,2398.7,1.4603]
[1751417676457,0.83363,2398.8,2398.7,1.4603]
[1751417677566,0.83366,2398.7,2398.6,0.6977]
[1751417677760,0.8337,2398.6,2398.5,0.7105]
[1751417679368,0.83377,2398.4,2398.3,41.5042]
[1751417680264,0.83385,2398.2,2398.0,28.58269]
[1751417680465,0.83386,2398.2,2398.0,3.6339]
[1751417680666,0.83386,2398.2,2398.1,40.8]
[1751417683974,0.83387,2398.1,2398.0,0.6721]
[1751417684167,6.78074747,2398.5,2397.5,4.69633747]
[1751417684168,0.83405,2397.6,2397.5,0.7126]
[1751417684369,1.4281,2398.0,2397.5,0.6749]
[1751417684572,0.83398,2397.8,2397.6,0.83403]
[1751417684767,1.4281,2398.0,2397.5,0.6749]
[1751417684768,1.54034,2398.0,2397.5,5.37123747]
[1751417684968,0.83389,2398.1,2397.8,0.83396]
[1751417685169,0.83389,2398.1,2397.6,6.76054685]
[1751417685576,0.83391,2398.0,2397.7,0.83399]
[1751417685771,11.925,2398.3,2397.8,2.0294]
[1751417685971,13.3305,2398.3,2397.8,2.0294]
[1751417686574,0.83394,2397.9,2397.8,2.0294]
[1751417688178,13.3305,2398.3,2397.8,2.0294]
[1751417688380,0.83391,2398.0,2397.9,0.6809]
[1751417689375,0.83405,2397.6,2397.5,0.6809]
[1751417691182,7.50249747,2398.2,2397.5,0.6809]
[1751417691489,1.56469,2398.1,2397.6,4.69633747]
[1751417691685,1.55535,2398.2,2397.9,0.83394]
[1751417691877,0.7308,2398.5,2398.0,1.54779]
[1751417692078,0.7308,2398.5,2398.0,0.7139]
[1751417692278,0.83386,2398.2,2398.0,0.7139]
[1751417692478,0.83387,2398.2,2398.0,0.7139]
[1751417692678,0.83382,2398.3,2398.0,0.7139]
[1751417692882,0.7308,2398.5,2398.1,0.83386]
[1751417693082,0.83379,2398.4,2398.1,0.83386]
[1751417693373,0.6735,2398.6,2398.0,0.7139]
[1751417693678,0.83362,2398.9,2398.2,10.17194754]
[1751417693883,0.83362,2398.9,2398.6,0.83369]
[1751417694081,0.83363,2398.8,2398.7,0.6868]
[1751417694382,0.83361,2398.9,2398.7,0.6868]
[1751417694980,13.2961,2399.0,2398.7,0.6868]
[1751417694981,0.83363,2398.8,2398.7,0.6868]
[1751417695484,0.83361,2398.9,2398.7,0.6868]
[1751417695684,14.12966,2399.0,2398.7,0.6868]
[1751417696088,12.76157,2399.0,2398.7,1.52045]
[1751417696279,0.83357,2399.0,2398.7,0.6868]
[1751417696484,0.83357,2399.0,2398.7,1.52046]
[1751417697093,2.0615,2399.3,2398.7,0.6868]
[1751417697386,0.83355,2399.1,2398.8,0.83361]
[1751417697788,0.83355,2399.1,2398.8,2.21601]
[1751417697984,0.83358,2399.0,2398.8,1.3824]
[1751417698184,0.83355,2399.1,2398.8,2.21603]
[1751417698385,1.4403,2399.2,2398.8,1.3824]
[1751417698586,0.83359,2399.0,2398.7,1.52046]
[1751417699190,0.83359,2399.0,2398.8,0.83363]
[1751417699786,0.8335,2399.2,2398.9,0.83359]
[1751417699987,2.24467,2399.3,2399.0,0.83356]
[1751417700184,1.4112,2399.3,2399.1,0.83351]
[1751417700489,0.83348,2399.3,2399.0,0.83355]
[1751417700793,1.4326,2399.5,2399.0,0.83355]
[1751417701083,0.83359,2399.0,2398.7,1.52043]
[1751417701283,0.83354,2399.1,2398.7,0.6868]
[1751417701484,0.83351,2399.2,2398.9,0.83357]
[1751417701884,0.83353,2399.1,2398.9,0.83357]
[1751417702388,1.3522,2399.3,2398.7,0.6868]
[1751417702585,4.69633747,2399.0,2398.4,41.4827]
[1751417702785,0.8337,2398.6,2398.4,42.31644]
[1751417702986,4.87256,2398.9,2398.2,0.7066]
[1751417703288,0.83377,2398.4,2398.2,1.54042]
[1751417703486,6.78055747,2398.7,2398.1,8.30059886]
[1751417703687,0.83384,2398.2,2397.9,0.7066]
[1751417703993,0.83391,2398.1,2397.9,0.7066]
[1751417704387,0.83386,2398.2,2397.9,1.54054]
[1751417704690,0.83386,2398.2,2398.0,0.8339]
[1751417704991,0.83386,2398.2,2397.9,1.54052]
[1751417705489,0.83388,2398.1,2397.9,1.54052]
[1751417706190,0.83386,2398.2,2397.9,1.54052]
[1751417707287,2.0791,2398.4,2397.9,1.54052]
[1751417707288,0.83379,2398.4,2397.9,5.40293747]
[1751417707494,0.83379,2398.4,2398.0,7.7473854]
[1751417708691,0.8338,2398.3,2398.0,6.9135054]
[1751417708896,0.8338,2398.3,2398.0,6.1730054]
[1751417709086,0.83386,2398.2,2398.0,6.1730054]
[1751417709391,0.83387,2398.1,2398.0,0.6668]
[1751417709880,0.83382,2398.3,2398.0,1.50069]
[1751417710088,0.83382,2398.3,2398.1,0.83387]
[1751417710291,0.83382,2398.3,2398.0,2.88838]
[1751417710491,0.83382,2398.3,2398.1,1.3877]
[1751417710994,0.83382,2398.3,2398.1,2.22157]
[1751417711591,0.83375,2398.5,2398.1,1.3877]
[1751417711792,1.51298,2398.7,2398.4,0.83376]
[1751417711993,0.83371,2398.6,2398.5,0.6873]
[1751417712784,0.83378,2398.4,2398.1,0.83385]
[1751417712982,0.83379,2398.4,2398.1,1.52116]
[1751417713192,0.83379,2398.4,2398.1,8.29781693]
[1751417713493,0.83374,2398.5,2398.2,0.83383]
[1751417713689,0.83374,2398.5,2398.1,8.29780693]
[1751417713890,0.83374,2398.5,2398.1,7.46395693]
[1751417714193,0.83374,2398.5,2398.2,0.83383]
[1751417715395,0.83377,2398.4,2398.1,7.46395693]
[1751417715595,2.0382,2398.8,2398.1,7.46395693]
[1751417715596,0.83375,2398.5,2398.2,0.83382]
[1751417717694,0.83378,2398.4,2398.1,8.29779693]
[1751417717897,0.83378,2398.4,2398.2,0.83383]
[1751417718192,1.3283,2398.7,2398.2,0.83383]
[1751417718796,0.83376,2398.5,2398.1,2.1371]
[1751417718993,0.83377,2398.4,2398.2,0.83382]
[1751417719998,0.83374,2398.5,2398.1,2.1371]
[1751417720194,0.83374,2398.5,2398.2,0.83381]
[1751417721099,0.83374,2398.5,2398.3,0.8338]
[1751417721299,0.83377,2398.4,2398.2,0.83381]
[1751417721700,0.83376,2398.5,2398.2,0.83381]
[1751417722200,0.83378,2398.4,2398.2,0.83381]
[1751417722501,0.8338,2398.3,2398.1,2.97095]
[1751417722802,0.8338,2398.3,2398.1,2.97097]
[1751417723097,1.3283,2398.7,2398.2,0.83383]
[1751417723399,0.7007,2398.8,2398.1,2.1371]
[1751417723594,0.83372,2398.6,2398.3,0.83377]
[1751417724094,0.83373,2398.5,2398.2,2.19631]
[1751417724300,0.83377,2398.4,2398.2,2.19631]
[1751417724893,0.83375,2398.5,2398.3,0.8338]
[1751417726393,0.83375,2398.5,2398.2,2.19631]
[1751417726805,0.83375,2398.5,2398.3,0.83379]
[1751417727602,0.83375,2398.5,2398.2,2.19631]
[1751417728307,0.83377,2398.4,2398.2,2.19631]
[1751417728905,0.83375,2398.5,2398.3,0.8338]
[1751417729406,0.83372,2398.6,2398.3,0.8338]
[1751417729605,0.8337,2398.7,2398.4,0.83375]
[1751417729796,0.6627,2399.0,2398.5,0.7225]
[1751417730001,0.83359,2399.0,2398.7,0.83365]
[1751417730203,0.83361,2398.9,2398.7,0.83365]
[1751417730506,2.08373,2399.2,2398.6,2.98388]
[1751417730802,0.83363,2398.8,2398.6,2.98388]
[1751417731105,0.83367,2398.7,2398.5,0.83372]
[1751417731304,0.83367,2398.7,2398.6,0.7225]
[1751417731900,0.83365,2398.8,2398.6,0.7225]
[1751417732101,0.83361,2398.9,2398.6,1.55619]
[1751417732307,0.83357,2399.0,2398.6,0.7225]
[1751417732601,1.3522,2399.3,2398.8,0.83362]
[1751417732906,0.83357,2399.0,2398.8,0.83362]
[1751417733996,0.8336,2398.9,2398.7,1.4249]
[1751417734198,0.8336,2398.9,2398.6,1.55617]
[1751417734402,0.83363,2398.8,2398.6,1.55617]
[1751417734803,0.83363,2398.8,2398.6,1.55619]
[1751417735207,0.83362,2398.9,2398.6,1.55619]
[1751417735406,0.83358,2399.0,2398.7,0.83366]
[1751417735612,0.83356,2399.0,2398.7,0.83366]
[1751417735909,2.88915,2399.1,2398.6,0.7225]
[1751417736104,1.49855,2399.1,2398.8,0.8336]
[1751417736418,0.83357,2399.0,2398.8,0.8336]
[1751417737108,0.83357,2399.0,2398.7,2.18044]
[1751417737304,0.83357,2399.0,2398.8,0.83362]
[1751417737503,0.83357,2399.0,2398.7,2.18044]
[1751417737705,2.08391,2399.0,2398.1,8.30059886]
[1751417737904,0.83379,2398.4,2398.2,0.7062]
[1751417738306,0.83379,2398.4,2398.2,1.54004]
[1751417738804,0.83379,2398.4,2398.2,0.7062]
[1751417739206,0.8338,2398.3,2398.2,0.7062]
[1751417739911,0.83379,2398.4,2398.2,0.7062]
[1751417740112,0.8338,2398.3,2398.2,0.7062]
[1751417740409,0.83378,2398.4,2398.2,0.7062]
[1751417740611,0.8338,2398.3,2398.2,0.7062]
[1751417743916,0.8338,2398.4,2398.2,1.54004]
[1751417744613,0.8338,2398.4,2398.2,0.7062]
[1751417745317,0.8338,2398.4,2398.2,1.54002]
[1751417745815,0.8338,2398.4,2398.2,3.15265031]
[1751417746514,0.8338,2398.3,2398.2,3.15265031]
[1751417747013,0.83379,2398.4,2398.2,3.15265031]
[1751417747516,0.8338,2398.3,2398.2,3.15265031]
[1751417748320,0.83379,2398.4,2398.2,3.15265031]
[1751417748813,0.8338,2398.3,2398.2,3.15265031]
[1751417749415,0.83379,2398.4,2398.2,3.15265031]
[1751417750016,0.83379,2398.4,2398.2,3.98648031]
[1751417751227,0.83379,2398.4,2398.2,3.15265031]
[1751417751527,0.83379,2398.4,2398.2,3.98648031]
[1751417752722,0.83379,2398.4,2398.2,3.15265031]
[1751417753218,0.83379,2398.4,2398.2,3.98648031]
[1751417754220,0.8338,2398.3,2398.2,3.15265031]
[1751417754420,0.83379,2398.4,2398.2,3.98649031]
[1751417754621,0.6802,2398.5,2398.2,3.98646031]
[1751417754822,0.83378,2398.4,2398.2,3.98646031]
[1751417755024,0.83378,2398.4,2398.2,3.15265031]
[1751417755320,0.6802,2398.5,2398.2,3.15265031]
[1751417755724,0.8338,2398.3,2398.2,3.15265031]
[1751417756523,0.83379,2398.4,2398.2,3.98649031]
[1751417759620,2.08382,2399.1,2398.2,3.15265031]
[1751417759825,0.83366,2398.8,2398.6,2.44645031]
[1751417760024,0.83366,2398.8,2398.7,0.7005]
[1751417760416,0.83372,2398.6,2398.4,1.52096]
[1751417760619,2.44645031,2398.8,2398.4,1.52096]
[1751417760620,0.83369,2398.7,2398.4,4.66791031]
[1751417761016,0.83369,2398.7,2398.4,3.83415031]
[1751417761328,0.8337,2398.6,2398.4,4.66790031]
[1751417761528,3.41562,2398.9,2398.4,3.83415031]
[1751417761731,0.83371,2398.6,2398.4,4.66791031]
[1751417762029,0.83373,2398.5,2398.4,3.83415031]
[1751417763629,0.83372,2398.6,2398.4,4.66792031]
[1751417764631,0.83373,2398.5,2398.4,3.83415031]
[1751417764930,0.83372,2398.6,2398.4,4.66792031]
[1751417765130,4.53043031,2399.0,2398.4,3.14695031]
[1751417765326,4.53043031,2399.0,2398.4,3.98072031]
[1751417765327,0.83373,2398.6,2398.4,3.98072031]
[1751417765526,0.83373,2398.5,2398.4,3.14695031]
[1751417767731,0.83373,2398.5,2398.4,3.98072031]
[1751417768334,0.83373,2398.5,2398.4,3.14695031]
[1751417768531,0.83365,2398.8,2398.6,0.83369]
[1751417768828,5.23715031,2399.2,2398.6,2.44645031]
[1751417769131,0.6637,2399.2,2398.8,2.44645031]
[1751417769431,0.83348,2399.3,2399.1,0.83352]
[1751417769936,0.83341,2399.5,2399.2,3.27993031]
[1751417770130,0.6899,2399.8,2399.4,2.44645031]
[1751417770434,0.83339,2399.5,2399.4,2.44645031]
[1751417770733,0.83342,2399.4,2399.3,0.6825]
[1751417771137,0.83341,2399.5,2399.3,0.6825]
[1751417771631,0.83342,2399.4,2399.3,0.6825]
[1751417772034,0.6899,2399.8,2399.4,0.8334]
[1751417772229,0.83334,2399.7,2399.5,0.83338]
[1751417772538,0.83333,2399.7,2399.5,0.83338]
[1751417772738,0.83333,2399.7,2399.5,1.3451]
[1751417773042,0.83335,2399.6,2399.5,1.3451]
[1751417773338,0.83335,2399.6,2399.4,2.44645031]
[1751417773638,0.83335,2399.6,2399.4,3.27987031]
[1751417773935,0.83339,2399.5,2399.4,2.44645031]
[1751417774334,0.83342,2399.4,2399.3,0.6825]
[1751417774529,2.44645031,2399.7,2398.6,8.30059886]
[1751417774734,2.7957,2399.3,2398.6,11.44194917]
[1751417774933,2.7957,2399.3,2398.7,6.72857041]
[1751417775133,0.83363,2398.8,2398.7,6.72857041]
[1751417775535,0.83366,2398.7,2398.6,0.6949]
[1751417776634,1.4212,2399.1,2398.6,3.14135031]
[1751417776829,1.4212,2399.1,2398.6,3.97502031]
[1751417777137,0.83364,2398.8,2398.6,3.14135031]
[1751417777340,0.83364,2398.8,2398.6,4.55895031]
[1751417777737,0.83364,2398.8,2398.6,5.39265031]
[1751417777932,0.83364,2398.8,2398.6,4.55895031]
[1751417778139,0.83366,2398.7,2398.6,4.55895031]
[1751417779738,0.83364,2398.8,2398.6,4.55895031]
[1751417780434,0.83362,2398.9,2398.6,5.39264031]
[1751417780634,0.83362,2398.9,2398.8,2.44645031]
[1751417782743,0.83366,2398.7,2398.6,4.55895031]
[1751417783348,0.83366,2398.7,2398.6,45.35895031]
[1751417784838,0.83366,2398.7,2398.6,0.6949]
[1751417785642,0.83366,2398.7,2398.6,3.14135031]
[1751417787448,0.83365,2398.8,2398.6,3.14135031]
[1751417787650,0.83366,2398.7,2398.6,3.14135031]
[1751417793354,0.83366,2398.7,2398.6,0.6949]
[1751417799058,0.83373,2398.5,2398.4,2.44645031]
[1751417800656,0.83373,2398.5,2398.4,3.79175031]
[1751417807466,0.83372,2398.6,2398.4,3.79175031]
[1751417808362,0.83373,2398.5,2398.4,3.79175031]
[1751417808567,0.83372,2398.6,2398.4,4.62552031]
[1751417809164,1.3633,2399.0,2398.4,3.79175031]
[1751417809372,0.83363,2398.9,2398.7,3.28010031]
[1751417809874,0.83363,2398.9,2398.8,0.6876]
[1751417810074,0.83358,2399.0,2398.8,1.52123]
[1751417810367,0.83358,2399.0,2398.9,2.44645031]
[1751417811474,0.7236,2399.2,2398.9,3.28001031]
[1751417811671,1.55712,2399.2,2399.0,0.83355]
[1751417812272,0.83352,2399.2,2399.0,0.83355]
[1751417813074,0.83352,2399.1,2398.9,3.99312031]
[1751417813276,2.0226,2399.4,2398.9,3.15955031]
[1751417813673,0.83354,2399.1,2398.9,3.99313031]
[1751417813974,0.83351,2399.2,2398.9,3.99313031]
[1751417814275,0.83352,2399.2,2398.9,5.45103031]
[1751417814476,0.83355,2399.1,2398.9,5.45103031]
[1751417814872,2.0226,2399.4,2398.9,4.61745031]
[1751417815074,0.83355,2399.1,2398.9,4.61745031]
[1751417815373,0.83355,2399.1,2398.9,5.45104031]
[1751417815971,0.83351,2399.2,2398.9,5.45104031]
[1751417816171,0.83351,2399.2,2399.0,0.83355]
[1751417816573,0.83351,2399.2,2399.0,2.21115]
[1751417817577,0.83352,2399.1,2399.0,1.3776]
[1751417818180,0.83352,2399.1,2398.9,3.15955031]
[1751417818373,0.83356,2399.0,2398.9,3.15955031]
[1751417818679,0.83359,2398.9,2398.8,0.6876]
[1751417818875,0.83368,2398.7,2398.5,3.28017031]
[1751417819075,2.08417,2398.7,2398.2,8.30059886]
[1751417819276,0.8338,2398.3,2398.2,8.30059886]
[1751417819674,0.83378,2398.4,2398.2,11.58088917]
[1751417819878,0.83378,2398.4,2398.2,3.28029031]
[1751417820183,0.8338,2398.3,2398.2,2.44645031]
[1751417820372,0.7231,2398.7,2398.3,0.83379]
[1751417820373,0.83374,2398.5,2398.3,0.83379]
[1751417820579,0.83377,2398.4,2398.2,4.68088031]
[1751417820779,0.83377,2398.4,2398.3,1.4006]
[1751417821983,0.83376,2398.5,2398.3,1.4006]
[1751417822185,0.83377,2398.4,2398.3,1.4006]
[1751417823184,2.44645031,2398.8,2398.3,1.4006]
[1751417823389,1.3506,2398.9,2398.3,1.4006]
[1751417823390,2.0316,2398.9,2398.4,2.44645031]
[1751417823584,2.0316,2398.9,2398.4,3.14645031]
[1751417823789,0.83373,2398.5,2398.4,3.14645031]
[1751417824987,0.83373,2398.5,2398.4,4.59515031]
[1751417825189,0.83373,2398.5,2398.4,3.89515031]
[1751417826989,0.83372,2398.6,2398.4,3.89515031]
[1751417827187,0.83373,2398.5,2398.4,3.89515031]
[1751417830191,0.8338,2398.3,2398.2,3.12435031]
[1751417831093,0.8338,2398.3,2398.2,2.44645031]
[1751417834888,0.8338,2398.3,2398.2,3.83535031]
[1751417835495,0.8338,2398.3,2398.2,2.44645031]
[1751417836793,1.4081,2398.8,2397.9,8.30059886]
[1751417836794,0.83391,2398.0,2397.9,8.30059886]
[1751417837094,0.83391,2398.0,2397.9,0.57031793]
[1751417837292,0.83394,2397.9,2397.8,43.91655031]
[1751417837496,0.83394,2397.9,2397.8,45.34195031]
[1751417838600,0.83393,2398.0,2397.8,45.34195031]
[1751417838897,2.08451,2398.3,2397.8,45.34195031]
[1751417839397,0.83394,2398.0,2397.8,45.34195031]
[1751417839592,0.83394,2398.0,2397.9,0.6864]
[1751417840294,0.83394,2398.0,2397.9,2.0578]
[1751417840704,0.83382,2398.3,2398.0,0.83389]
[1751417840893,1.4189,2398.8,2398.2,2.44645031]
[1751417841200,0.83373,2398.6,2398.5,2.44645031]
[1751417841600,0.83377,2398.4,2398.3,5.19295031]
[1751417841796,0.83377,2398.4,2398.3,3.82155031]
[1751417844498,0.83377,2398.4,2398.3,3.13285031]
[1751417847107,0.83376,2398.5,2398.3,3.13285031]
[1751417847305,2.08442,2398.4,2397.8,8.30059886]
[1751417847505,0.7087,2398.3,2397.8,4.00941031]
[1751417847701,2.1478,2398.3,2397.9,40.8]
[1751417848101,0.83392,2398.0,2397.9,40.8]
[1751417848301,0.83392,2398.0,2397.8,4.00941031]
[1751417848707,0.83389,2398.1,2397.9,0.83394]
[1751417848902,0.83389,2398.1,2398.0,2.44645031]
[1751417850907,0.83394,2397.9,2397.8,43.97545031]
[1751417851107,0.83394,2397.9,2397.8,3.17545031]
[1751417851305,4.13314,2398.2,2397.8,3.17545031]
[1751417851507,1.3312,2398.1,2397.8,3.17545031]
[1751417851804,0.83394,2397.9,2397.8,3.17545031]
[1751417852010,2.08408,2398.8,2397.9,5.33111433]
[1751417852211,0.83375,2398.5,2398.4,2.44645031]
[1751417853205,1.4075,2398.7,2398.4,2.44645031]
[1751417853417,0.83373,2398.5,2398.4,2.44645031]
[1751417854011,0.83372,2398.6,2398.4,3.28022031]
[1751417854212,0.83373,2398.5,2398.4,2.44645031]
[1751417855319,1.4075,2398.7,2398.4,2.44645031]
[1751417855619,0.83373,2398.5,2398.4,2.44645031]
[1751417857312,0.83377,2398.4,2398.2,2.26651]
[1751417857519,0.83374,2398.5,2398.3,3.28025031]
[1751417858320,0.83374,2398.5,2398.3,2.44645031]
[1751417859622,0.83377,2398.4,2398.3,2.44645031]
[1751417860513,4.53075031,2398.6,2398.1,2.44645031]
[1751417860711,5.97675031,2398.6,2398.0,12.5912]
[1751417860916,0.83387,2398.1,2398.0,12.5912]
[1751417861112,0.83387,2398.1,2398.0,0.6942]
[1751417863022,0.83385,2398.2,2398.0,1.52808]
[1751417863520,0.83385,2398.2,2398.0,0.6942]
[1751417863819,0.83385,2398.2,2398.0,1.5281]
[1751417864323,0.83385,2398.2,2398.1,2.44645031]
[1751417864623,0.83384,2398.2,2398.1,2.44645031]
[1751417864923,2.1242,2398.5,2398.1,2.44645031]
[1751417865125,0.83384,2398.2,2398.1,2.44645031]
[1751417867325,2.1242,2398.5,2398.1,2.44645031]
[1751417867524,0.83381,2398.3,2398.1,3.28031031]
[1751417868227,0.6806,2398.7,2398.2,0.83382]
[1751417868424,0.83376,2398.5,2398.3,3.28025031]
[1751417868823,0.83376,2398.5,2398.4,0.7146]
[1751417871626,0.83372,2398.6,2398.4,1.54837]
[1751417871827,0.83373,2398.5,2398.4,0.7146]
[1751417872431,0.83372,2398.6,2398.4,1.54837]
[1751417872631,0.83373,2398.5,2398.4,1.54837]
[1751417872831,0.83373,2398.5,2398.4,0.7146]
[1751417873427,2.0844,2398.5,2398.0,0.6982]
[1751417873631,0.83385,2398.2,2398.0,0.6982]
[1751417873824,0.83387,2398.1,2398.0,0.6982]
[1751417874028,0.83386,2398.2,2398.0,0.6982]
[1751417874329,0.83386,2398.2,2398.1,2.44645031]
[1751417876233,2.122,2398.4,2398.1,2.44645031]
[1751417876234,0.83383,2398.3,2398.1,2.44645031]
[1751417876532,0.83383,2398.3,2398.1,3.28032031]
[1751417876727,0.6806,2398.7,2398.2,0.83383]
[1751417876933,0.6806,2398.7,2398.3,2.44645031]
[1751417877129,0.83377,2398.4,2398.3,2.44645031]
[1751417878228,0.83384,2398.2,2397.9,0.83391]
[1751417878532,3.12705031,2398.7,2398.1,2.44645031]
[1751417878731,4.47515031,2398.7,2398.2,0.6917]
[1751417878931,1.3481,2398.6,2398.2,0.6917]
[1751417879132,0.83382,2398.3,2398.2,0.6917]
[1751417883341,0.83379,2398.4,2398.2,0.6917]
[1751417883542,0.83379,2398.4,2398.3,2.44645031]
[1751417884135,0.6806,2398.7,2398.3,2.44645031]
[1751417884541,0.83377,2398.4,2398.3,2.44645031]
[1751417885440,0.83377,2398.4,2398.2,1.4234]
[1751417885639,2.1123,2398.7,2398.3,2.44645031]
[1751417885837,0.83375,2398.5,2398.3,2.44645031]
[1751417886343,0.83377,2398.4,2398.3,2.44645031]
[1751417887842,0.83375,2398.5,2398.3,2.44645031]
[1751417888042,0.83375,2398.5,2398.3,3.86615031]
[1751417888941,0.83375,2398.5,2398.3,4.56605031]
[1751417890048,0.83372,2398.6,2398.3,5.39985031]
[1751417890348,0.83374,2398.5,2398.3,5.39985031]
[1751417892152,2.069,2398.9,2398.3,4.56605031]
[1751417892352,0.83368,2398.7,2398.6,2.44645031]
[1751417893547,0.83366,2398.7,2398.6,2.44645031]
[1751417894452,0.6842,2398.9,2398.6,2.44645031]
[1751417894852,0.83366,2398.7,2398.6,2.44645031]
[1751417895552,0.83366,2398.7,2398.5,0.83371]
[1751417895752,0.83366,2398.7,2398.5,3.28016031]
[1751417896151,0.8337,2398.6,2398.5,2.44645031]
[1751417897049,0.83369,2398.7,2398.5,3.28018031]
[1751417898255,0.83369,2398.7,2398.5,2.44645031]
[1751417898454,0.83385,2398.2,2397.9,8.30059886]
[1751417898645,0.83389,2398.1,2397.9,3.28039031]
[1751417898850,2.08446,2398.4,2397.9,2.44645031]
[1751417899148,0.83391,2398.0,2397.9,2.44645031]
[1751417902259,2.80346,2398.4,2397.9,2.44645031]
[1751417902260,0.8339,2398.1,2397.9,2.44645031]
[1751417902557,0.719,2398.4,2397.9,3.77845031]
[1751417902759,0.83382,2398.3,2398.2,2.44645031]
[1751417911968,0.83384,2398.2,2398.1,0.6655]
[1751417921270,0.83371,2398.6,2398.3,0.83378]
[1751417921579,0.83371,2398.6,2398.5,2.44645031]
[1751417927184,0.83377,2398.4,2398.3,2.44645031]
[1751417927480,0.83376,2398.5,2398.3,3.28025031]
[1751417928781,0.83376,2398.5,2398.3,2.44645031]
[1751417928983,0.83376,2398.5,2398.3,3.28025031]
[1751417929184,0.83376,2398.5,2398.3,4.74385031]
[1751417929482,0.83377,2398.4,2398.3,3.91005031]
[1751417930082,0.83376,2398.5,2398.3,3.91005031]
[1751417930677,1.3662,2398.8,2398.3,3.91005031]
[1751417930879,0.83371,2398.6,2398.5,2.44645031]
[1751417931076,0.83371,2398.6,2398.5,0.683]
[1751417931483,2.44645031,2398.7,2398.1,0.6655]
[1751417931684,0.83384,2398.2,2398.1,0.6655]
[1751417933186,0.83383,2398.3,2398.1,0.6655]
[1751417933388,0.83384,2398.2,2398.1,0.6655]
[1751417936888,0.83387,2398.1,2398.0,0.6686]
[1751417937290,3.49916,2398.4,2398.0,0.6686]
[1751417937786,1.3691,2398.3,2398.0,0.6686]
[1751417937989,0.83387,2398.1,2398.0,0.6686]
[1751417938892,0.83387,2398.1,2397.9,0.6859]
[1751417939689,0.83387,2398.1,2397.9,1.51984]
[1751417940290,0.83387,2398.1,2397.9,0.6859]
[1751417940990,0.83387,2398.1,2397.9,1.51984]
[1751417941891,0.83386,2398.2,2398.0,3.28034031]
[1751417942490,0.83386,2398.2,2398.0,2.44645031]
[1751417943194,0.83387,2398.1,2398.0,2.44645031]
[1751417944695,0.83385,2398.2,2398.0,3.28035031]
[1751417945082,1.4175,2398.7,2398.0,3.77695031]
[1751417945286,0.83377,2398.4,2398.3,2.44645031]
[1751417945483,0.83372,2398.6,2398.3,3.28024031]
[1751417945686,0.7172,2398.8,2398.5,2.44645031]
[1751417945892,0.83373,2398.5,2398.4,0.7166]
[1751417946094,0.83377,2398.4,2398.3,2.44645031]
[1751417946594,0.83377,2398.4,2398.2,0.7166]
[1751417947392,0.8338,2398.3,2398.2,0.7166]
[1751417948296,0.83379,2398.4,2398.2,0.7166]
[1751417949193,0.8338,2398.3,2398.2,0.7166]
[1751417949595,1.4175,2398.7,2398.2,0.7166]
[1751417949896,1.4175,2398.7,2398.2,1.55043]
[1751417950106,62.09761,2399.4,2398.5,2.44645031]
[1751417950296,17.03275031,2399.3,2398.7,2.44645031]
[1751417950598,17.03275031,2399.3,2398.6,0.72]
[1751417950599,0.83361,2398.9,2398.6,1.55368]
[1751417950800,0.83364,2398.8,2398.6,0.72]
[1751417951299,0.83361,2398.9,2398.6,1.55369]
[1751417951692,0.83363,2398.8,2398.6,1.55369]
[1751417952199,0.83362,2398.9,2398.6,1.55369]
[1751417952401,0.83361,2398.9,2398.6,1.55369]
[1751417952700,0.83364,2398.8,2398.6,1.55369]
[1751417952996,2.15858,2399.0,2398.7,3.28011031]
[1751417953201,0.83359,2398.9,2398.7,3.28011031]
[1751417953596,0.83358,2399.0,2398.7,3.28011031]
[1751417954097,0.83359,2398.9,2398.7,3.28011031]
[1751417957407,0.83363,2398.8,2398.7,2.44645031]